[Event "Titled Tuesday Blitz August 15 Late 2023"]
[White "Holt, Conrad"]
[Black "Chor, Kevin"]
[WhiteFideId "2034387"]
[BlackFideId "2090740"]
[WhiteElo "2875"]
[BlackElo "2572"]
[Result "1-0"]
[Round "3"]
[TimeControl "180+1"]
[Date "2023.08.15"]
[WhiteClock "0:00:08"]
[BlackClock "0:00:03"]
[Board "27"]

1. d4 {[%clk 0:03:00]}  Nf6 {[%clk 0:02:59]} 2. c4 {[%clk 0:03:01]}  g6 {[%clk 0:02:59]} 3. Nc3 {[%clk 0:03:01]}  Bg7 {[%clk 0:03:00]} 4. e4 {[%clk 0:03:02]}  d6 {[%clk 0:03:00]} 5. Nf3 {[%clk 0:03:02]}  O-O {[%clk 0:03:00]} 6. h3 {[%clk 0:03:03]}  e5 {[%clk 0:02:59]} 7. dxe5 {[%clk 0:03:04]}  dxe5 {[%clk 0:02:59]} 8. Qxd8 {[%clk 0:03:05]}  Rxd8 {[%clk 0:03:00]} 9. Bg5 {[%clk 0:03:05]}  Re8 {[%clk 0:02:56]} 10. Nd5 {[%clk 0:03:05]}  Nxd5 {[%clk 0:02:56]} 11. cxd5 {[%clk 0:03:06]}  c6 {[%clk 0:02:55]} 12. Bc4 {[%clk 0:03:07]}  cxd5 {[%clk 0:02:55]} 13. Bxd5 {[%clk 0:03:08]}  Nc6 {[%clk 0:02:55]} 14. Ke2 {[%clk 0:03:07]}  Be6 {[%clk 0:02:47]} 15. Bxe6 {[%clk 0:03:05]}  Rxe6 {[%clk 0:02:45]} 16. Rhd1 {[%clk 0:03:06]}  Nd4+ {[%clk 0:02:44]} 17. Nxd4 {[%clk 0:03:06]}  exd4 {[%clk 0:02:44]} 18. Kd3 {[%clk 0:03:06]}  Rae8 {[%clk 0:02:43]} 19. f3 {[%clk 0:02:54]}  f5 {[%clk 0:02:35]} 20. Re1 {[%clk 0:02:49]}  h6 {[%clk 0:02:32]} 21. Bd2 {[%clk 0:02:44]}  fxe4+ {[%clk 0:02:25]} 22. fxe4 {[%clk 0:02:43]}  Rb6 {[%clk 0:02:21]} 23. b3 {[%clk 0:02:35]}  Rf6 {[%clk 0:02:17]} 24. Re2 {[%clk 0:02:32]}  Ra6 {[%clk 0:02:12]} 25. a4 {[%clk 0:02:28]}  Rb6 {[%clk 0:02:11]} 26. b4 {[%clk 0:02:27]}  Rc6 {[%clk 0:02:05]} 27. b5 {[%clk 0:02:10]}  Rc5 {[%clk 0:01:53]} 28. Rc1 {[%clk 0:02:04]}  Rec8 {[%clk 0:01:38]} 29. Ree1 {[%clk 0:01:43]}  b6 {[%clk 0:01:29]} 30. Rxc5 {[%clk 0:01:37]}  Rxc5 {[%clk 0:01:24]} 31. Rc1 {[%clk 0:01:31]}  Rxc1 {[%clk 0:01:02]} 32. Bxc1 {[%clk 0:01:31]}  Kf7 {[%clk 0:01:02]} 33. Bb2 {[%clk 0:01:22]}  Ke6 {[%clk 0:01:02]} 34. Bxd4 {[%clk 0:01:22]}  Bf8 {[%clk 0:01:03]} 35. Bc3 {[%clk 0:01:08]}  h5 {[%clk 0:01:00]} 36. a5 {[%clk 0:01:07]}  Bd6 {[%clk 0:00:46]} 37. Kc4 {[%clk 0:00:31]}  bxa5 {[%clk 0:00:33]} 38. Bxa5 {[%clk 0:00:31]}  Ke5 {[%clk 0:00:33]} 39. Kd3 {[%clk 0:00:31]}  Kf4 {[%clk 0:00:33]} 40. Be1 {[%clk 0:00:12]}  g5 {[%clk 0:00:15]} 41. Bf2 {[%clk 0:00:11]}  Bb8 {[%clk 0:00:16]} 42. Kd4 {[%clk 0:00:10]}  g4 {[%clk 0:00:14]} 43. hxg4 {[%clk 0:00:10]}  hxg4 {[%clk 0:00:15]} 44. Kd5 {[%clk 0:00:09]}  g3 {[%clk 0:00:12]} 45. Bd4 {[%clk 0:00:08]}  Kg4 {[%clk 0:00:10]} 46. e5 {[%clk 0:00:08]}  Kf5 {[%clk 0:00:03]} 47. e6 {[%clk 0:00:08]} 1-0


[Site "https://www.chess.com"]

[Event "Titled Tuesday Blitz August 15 Late 2023"]
[White "Loay, Sameer"]
[Black "Cordova, Emilio"]
[WhiteFideId "8104239"]
[BlackFideId "3801497"]
[WhiteElo "2567"]
[BlackElo "2874"]
[Result "0-1"]
[Round "3"]
[TimeControl "180+1"]
[Date "2023.08.15"]
[WhiteClock "0:00:05"]
[BlackClock "0:00:41"]
[Board "28"]

1. Nf3 {[%clk 0:03:00]}  b6 {[%clk 0:02:59]} 2. g3 {[%clk 0:03:01]}  Bb7 {[%clk 0:03:00]} 3. Bg2 {[%clk 0:03:01]}  c5 {[%clk 0:02:59]} 4. O-O {[%clk 0:03:02]}  e6 {[%clk 0:03:00]} 5. d3 {[%clk 0:03:02]}  Nf6 {[%clk 0:03:00]} 6. e4 {[%clk 0:03:02]}  d5 {[%clk 0:03:00]} 7. Nbd2 {[%clk 0:03:01]}  Be7 {[%clk 0:03:00]} 8. e5 {[%clk 0:03:00]}  Nfd7 {[%clk 0:03:00]} 9. Re1 {[%clk 0:03:01]}  Nc6 {[%clk 0:03:00]} 10. Nf1 {[%clk 0:03:01]}  h6 {[%clk 0:02:59]} 11. c4 {[%clk 0:02:57]}  dxc4 {[%clk 0:02:56]} 12. dxc4 {[%clk 0:02:54]}  Qc7 {[%clk 0:02:53]} 13. h4 {[%clk 0:02:44]}  O-O-O {[%clk 0:02:50]} 14. Qe2 {[%clk 0:02:41]}  g5 {[%clk 0:02:49]} 15. hxg5 {[%clk 0:01:59]}  hxg5 {[%clk 0:02:50]} 16. Nxg5 {[%clk 0:01:54]}  Nd4 {[%clk 0:02:43]} 17. Bxb7+ {[%clk 0:01:45]}  Qxb7 {[%clk 0:02:43]} 18. Qe4 {[%clk 0:01:45]}  Bxg5 {[%clk 0:02:42]} 19. Bxg5 {[%clk 0:01:18]}  Nf3+ {[%clk 0:02:42]} 20. Kg2 {[%clk 0:01:18]}  Nxg5 {[%clk 0:02:40]} 21. Qxb7+ {[%clk 0:01:18]}  Kxb7 {[%clk 0:02:40]} 22. f4 {[%clk 0:01:19]}  Nh7 {[%clk 0:02:39]} 23. Ne3 {[%clk 0:01:18]}  Nhf8 {[%clk 0:02:38]} 24. Kf3 {[%clk 0:00:58]}  Ng6 {[%clk 0:02:37]} 25. a4 {[%clk 0:00:57]}  Nb8 {[%clk 0:02:35]} 26. a5 {[%clk 0:00:56]}  Nc6 {[%clk 0:02:35]} 27. axb6 {[%clk 0:00:55]}  axb6 {[%clk 0:02:35]} 28. Rh1 {[%clk 0:00:49]}  Nd4+ {[%clk 0:02:32]} 29. Ke4 {[%clk 0:00:50]}  Ne7 {[%clk 0:02:27]} 30. g4 {[%clk 0:00:49]}  Nec6 {[%clk 0:02:19]} 31. f5 {[%clk 0:00:43]}  Kc7 {[%clk 0:02:09]} 32. Raf1 {[%clk 0:00:41]}  Rxh1 {[%clk 0:02:04]} 33. Rxh1 {[%clk 0:00:42]}  exf5+ {[%clk 0:01:54]} 34. gxf5 {[%clk 0:00:39]}  Re8 {[%clk 0:01:54]} 35. e6 {[%clk 0:00:40]}  fxe6 {[%clk 0:01:54]} 36. f6 {[%clk 0:00:39]}  Rf8 {[%clk 0:01:53]} 37. Ng4 {[%clk 0:00:36]}  Rf7 {[%clk 0:01:48]} 38. Rh6 {[%clk 0:00:23]}  Nf5 {[%clk 0:01:47]} 39. Rg6 {[%clk 0:00:22]}  Nd6+ {[%clk 0:01:46]} 40. Kf4 {[%clk 0:00:20]}  Ne8 {[%clk 0:01:35]} 41. Kg5 {[%clk 0:00:20]}  Kd6 {[%clk 0:01:25]} 42. Rg8 {[%clk 0:00:20]}  Kd7 {[%clk 0:01:23]} 43. Kg6 {[%clk 0:00:20]}  Nd6 {[%clk 0:00:53]} 44. Rg7 {[%clk 0:00:17]}  Ne7+ {[%clk 0:00:44]} 45. fxe7 {[%clk 0:00:14]}  Rxg7+ {[%clk 0:00:45]} 46. Kxg7 {[%clk 0:00:14]}  Kxe7 {[%clk 0:00:46]} 47. Kg6 {[%clk 0:00:14]}  Nxc4 {[%clk 0:00:45]} 48. b3 {[%clk 0:00:08]}  Nd2 {[%clk 0:00:45]} 49. Ne5 {[%clk 0:00:05]}  Nxb3 {[%clk 0:00:43]} 50. Nc6+ {[%clk 0:00:06]}  Kd6 {[%clk 0:00:43]} 51. Nd8 {[%clk 0:00:06]}  Nd4 {[%clk 0:00:41]} 52. Kf6 {[%clk 0:00:06]}  b5 {[%clk 0:00:40]} 53. Nf7+ {[%clk 0:00:07]}  Kd5 {[%clk 0:00:40]} 54. Ne5 {[%clk 0:00:08]}  b4 {[%clk 0:00:41]} 55. Nd3 {[%clk 0:00:08]}  b3 {[%clk 0:00:41]} 56. Nf4+ {[%clk 0:00:05]}  Ke4 {[%clk 0:00:41]} 0-1


[Site "https://www.chess.com"]

[Event "Titled Tuesday Blitz August 15 Late 2023"]
[White "Lysyj, Igor"]
[Black "Leenhouts, Koen"]
[WhiteFideId "4150120"]
[BlackFideId "1008439"]
[WhiteElo "2870"]
[BlackElo "2541"]
[Result "1-0"]
[Round "3"]
[TimeControl "180+1"]
[Date "2023.08.15"]
[WhiteClock "0:00:17"]
[BlackClock "0:00:01"]
[Board "29"]

1. d4 {[%clk 0:02:59]}  Nf6 {[%clk 0:02:58]} 2. c4 {[%clk 0:02:59]}  c5 {[%clk 0:02:59]} 3. d5 {[%clk 0:02:59]}  b5 {[%clk 0:02:58]} 4. cxb5 {[%clk 0:02:57]}  a6 {[%clk 0:02:57]} 5. bxa6 {[%clk 0:02:56]}  g6 {[%clk 0:02:57]} 6. Nc3 {[%clk 0:02:54]}  Bg7 {[%clk 0:02:54]} 7. a7 {[%clk 0:02:52]}  Rxa7 {[%clk 0:02:50]} 8. e4 {[%clk 0:02:52]}  O-O {[%clk 0:02:45]} 9. Nf3 {[%clk 0:02:52]}  e6 {[%clk 0:02:42]} 10. Be2 {[%clk 0:02:47]}  exd5 {[%clk 0:02:37]} 11. exd5 {[%clk 0:02:46]}  d6 {[%clk 0:02:33]} 12. O-O {[%clk 0:02:46]}  Re8 {[%clk 0:02:21]} 13. Bb5 {[%clk 0:02:40]}  Bd7 {[%clk 0:02:14]} 14. a4 {[%clk 0:02:38]}  Bxb5 {[%clk 0:01:45]} 15. Nxb5 {[%clk 0:02:37]}  Rae7 {[%clk 0:01:26]} 16. Bf4 {[%clk 0:02:32]}  Ne4 {[%clk 0:01:25]} 17. Qc2 {[%clk 0:02:31]}  Na6 {[%clk 0:01:22]} 18. Rab1 {[%clk 0:02:19]}  Nb4 {[%clk 0:01:21]} 19. Qc4 {[%clk 0:02:18]}  Nxf2 {[%clk 0:01:07]} 20. Nxd6 {[%clk 0:01:43]}  Re4 {[%clk 0:00:41]} 21. Nxe4 {[%clk 0:01:35]}  Rxe4 {[%clk 0:00:42]} 22. Qb5 {[%clk 0:01:29]}  Nfd3 {[%clk 0:00:17]} 23. Bd2 {[%clk 0:01:16]}  Qxd5 {[%clk 0:00:14]} 24. Bc3 {[%clk 0:01:10]}  h6 {[%clk 0:00:09]} 25. Rbd1 {[%clk 0:01:05]}  Re2 {[%clk 0:00:07]} 26. Bxb4 {[%clk 0:00:46]}  Bd4+ {[%clk 0:00:07]} 27. Kh1 {[%clk 0:00:46]}  Nf2+ {[%clk 0:00:07]} 28. Rxf2 {[%clk 0:00:47]}  Rxf2 {[%clk 0:00:07]} 29. Qd3 {[%clk 0:00:35]}  cxb4 {[%clk 0:00:05]} 30. Qxd4 {[%clk 0:00:34]}  Qxd4 {[%clk 0:00:04]} 31. Nxd4 {[%clk 0:00:34]}  Rxb2 {[%clk 0:00:04]} 32. h3 {[%clk 0:00:28]}  Ra2 {[%clk 0:00:04]} 33. Rb1 {[%clk 0:00:24]}  Rxa4 {[%clk 0:00:04]} 34. Nc6 {[%clk 0:00:24]}  Ra2 {[%clk 0:00:04]} 35. Nxb4 {[%clk 0:00:24]}  Rd2 {[%clk 0:00:05]} 36. Nc6 {[%clk 0:00:23]}  Rd7 {[%clk 0:00:05]} 37. Ne5 {[%clk 0:00:22]}  Re7 {[%clk 0:00:05]} 38. Nf3 {[%clk 0:00:22]}  Kg7 {[%clk 0:00:05]} 39. Kh2 {[%clk 0:00:22]}  h5 {[%clk 0:00:05]} 40. Rb6 {[%clk 0:00:22]}  Rd7 {[%clk 0:00:06]} 41. h4 {[%clk 0:00:22]}  Re7 {[%clk 0:00:06]} 42. Ng5 {[%clk 0:00:21]}  Rd7 {[%clk 0:00:07]} 43. g3 {[%clk 0:00:21]}  Rc7 {[%clk 0:00:07]} 44. Kg2 {[%clk 0:00:20]}  Rd7 {[%clk 0:00:08]} 45. Kf3 {[%clk 0:00:20]}  Rc7 {[%clk 0:00:09]} 46. Rb3 {[%clk 0:00:20]}  Rd7 {[%clk 0:00:09]} 47. Ke4 {[%clk 0:00:19]}  Rc7 {[%clk 0:00:10]} 48. Kd5 {[%clk 0:00:19]}  Rd7+ {[%clk 0:00:10]} 49. Kc6 {[%clk 0:00:19]}  Ra7 {[%clk 0:00:11]} 50. Rb7 {[%clk 0:00:18]}  Rxb7 {[%clk 0:00:10]} 51. Kxb7 {[%clk 0:00:19]}  Kf6 {[%clk 0:00:09]} 52. Kc6 {[%clk 0:00:19]}  Kf5 {[%clk 0:00:08]} 53. Nxf7 {[%clk 0:00:18]}  Kg4 {[%clk 0:00:08]} 54. Ne5+ {[%clk 0:00:19]}  Kxg3 {[%clk 0:00:05]} 55. Nxg6 {[%clk 0:00:18]}  Kg4 {[%clk 0:00:05]} 56. Kd5 {[%clk 0:00:17]}  Kf5 {[%clk 0:00:06]} 57. Ne5 {[%clk 0:00:17]}  Kf4 {[%clk 0:00:05]} 58. Ke6 {[%clk 0:00:17]}  Kg3 {[%clk 0:00:01]} 59. Ng6 {[%clk 0:00:17]} 1-0


[Site "https://www.chess.com"]

[Event "Titled Tuesday Blitz August 15 Late 2023"]
[White "Delorme, Laurie"]
[Black "Yanchenko, Roman"]
[WhiteFideId "630829"]
[BlackFideId "4137329"]
[WhiteElo "2068"]
[BlackElo "2796"]
[Result "1-0"]
[Round "3"]
[TimeControl "180+1"]
[Date "2023.08.15"]
[WhiteClock "0:00:03"]
[BlackClock "0:00:00"]
[Board "35"]

1. e4 {[%clk 0:03:00]}  e6 {[%clk 0:03:00]} 2. d4 {[%clk 0:03:01]}  d5 {[%clk 0:03:00]} 3. Nc3 {[%clk 0:03:01]}  Bb4 {[%clk 0:03:00]} 4. e5 {[%clk 0:03:01]}  Ne7 {[%clk 0:03:00]} 5. Qg4 {[%clk 0:03:01]}  O-O {[%clk 0:02:59]} 6. Bd3 {[%clk 0:02:54]}  Nf5 {[%clk 0:02:14]} 7. Nf3 {[%clk 0:02:49]}  Kh8 {[%clk 0:02:07]} 8. h4 {[%clk 0:02:43]}  b6 {[%clk 0:02:05]} 9. a3 {[%clk 0:02:37]}  Bxc3+ {[%clk 0:02:06]} 10. bxc3 {[%clk 0:02:38]}  Qd7 {[%clk 0:02:01]} 11. h5 {[%clk 0:02:18]}  h6 {[%clk 0:02:01]} 12. Qf4 {[%clk 0:01:59]}  Ba6 {[%clk 0:01:12]} 13. g4 {[%clk 0:01:51]}  Bxd3 {[%clk 0:01:12]} 14. cxd3 {[%clk 0:01:50]}  Ne7 {[%clk 0:01:12]} 15. Qg3 {[%clk 0:01:32]}  c5 {[%clk 0:01:01]} 16. Qh4 {[%clk 0:00:58]}  Nbc6 {[%clk 0:01:00]} 17. Bxh6 {[%clk 0:00:57]}  gxh6 {[%clk 0:01:00]} 18. Qf6+ {[%clk 0:00:57]}  Kh7 {[%clk 0:01:00]} 19. g5 {[%clk 0:00:57]}  Nf5 {[%clk 0:00:54]} 20. Nh4 {[%clk 0:00:28]}  Qe7 {[%clk 0:00:54]} 21. g6+ {[%clk 0:00:20]}  fxg6 {[%clk 0:00:53]} 22. Qxg6+ {[%clk 0:00:15]}  Kh8 {[%clk 0:00:53]} 23. Nxf5 {[%clk 0:00:15]}  Rxf5 {[%clk 0:00:42]} 24. Qxh6+ {[%clk 0:00:15]}  Qh7 {[%clk 0:00:42]} 25. Qxe6 {[%clk 0:00:15]}  Ne7 {[%clk 0:00:42]} 26. O-O-O {[%clk 0:00:09]}  cxd4 {[%clk 0:00:42]} 27. c4 {[%clk 0:00:07]}  dxc4 {[%clk 0:00:40]} 28. Rhg1 {[%clk 0:00:04]}  cxd3 {[%clk 0:00:00]} 29. h6 {[%clk 0:00:03]} 1-0


[Site "https://www.chess.com"]

[Event "Titled Tuesday Blitz August 15 Late 2023"]
[White "Nakamura, Hikaru"]
[Black "Papayan, Oleg"]
[WhiteFideId "2016192"]
[BlackFideId "4193911"]
[WhiteElo "3223"]
[BlackElo "2628"]
[Result "1-0"]
[Round "3"]
[TimeControl "180+1"]
[Date "2023.08.15"]
[WhiteClock "0:01:56"]
[BlackClock "0:00:02"]
[Board "36"]

1. b3 {[%clk 0:03:00]}  e5 {[%clk 0:02:55]} 2. Bb2 {[%clk 0:03:01]}  Nc6 {[%clk 0:02:55]} 3. e3 {[%clk 0:03:01]}  Nf6 {[%clk 0:02:55]} 4. Bb5 {[%clk 0:03:01]}  e4 {[%clk 0:02:56]} 5. f4 {[%clk 0:03:00]}  a6 {[%clk 0:02:27]} 6. Bxc6 {[%clk 0:02:59]}  dxc6 {[%clk 0:02:28]} 7. h3 {[%clk 0:02:57]}  h5 {[%clk 0:02:18]} 8. Qe2 {[%clk 0:02:56]}  h4 {[%clk 0:02:14]} 9. Qf2 {[%clk 0:02:56]}  Bf5 {[%clk 0:01:48]} 10. Ne2 {[%clk 0:02:56]}  Qd7 {[%clk 0:01:13]} 11. Nbc3 {[%clk 0:02:54]}  O-O-O {[%clk 0:01:12]} 12. O-O-O {[%clk 0:02:54]}  c5 {[%clk 0:00:55]} 13. Kb1 {[%clk 0:02:50]}  Kb8 {[%clk 0:00:50]} 14. Nc1 {[%clk 0:02:51]}  b5 {[%clk 0:00:46]} 15. d3 {[%clk 0:02:47]}  exd3 {[%clk 0:00:23]} 16. Nxd3 {[%clk 0:02:48]}  Qe8 {[%clk 0:00:17]} 17. Qf3 {[%clk 0:02:27]}  Ne4 {[%clk 0:00:15]} 18. Ne5 {[%clk 0:02:25]}  Nxc3+ {[%clk 0:00:07]} 19. Bxc3 {[%clk 0:02:26]}  Rxd1+ {[%clk 0:00:07]} 20. Rxd1 {[%clk 0:02:26]}  Bd6 {[%clk 0:00:06]} 21. Nc6+ {[%clk 0:02:11]}  Kc8 {[%clk 0:00:06]} 22. Be5 {[%clk 0:02:12]}  f6 {[%clk 0:00:04]} 23. Bxd6 {[%clk 0:02:06]}  cxd6 {[%clk 0:00:04]} 24. Ne7+ {[%clk 0:01:57]}  Qxe7 {[%clk 0:00:04]} 25. Qa8+ {[%clk 0:01:57]}  Kc7 {[%clk 0:00:05]} 26. Qxh8 {[%clk 0:01:58]}  Qxe3 {[%clk 0:00:05]} 27. Qxg7+ {[%clk 0:01:58]}  Kc6 {[%clk 0:00:06]} 28. Qxf6 {[%clk 0:01:55]}  Bxc2+ {[%clk 0:00:06]} 29. Kxc2 {[%clk 0:01:55]}  Qe2+ {[%clk 0:00:06]} 30. Rd2 {[%clk 0:01:54]}  Qe4+ {[%clk 0:00:06]} 31. Kb2 {[%clk 0:01:54]}  c4 {[%clk 0:00:05]} 32. Qxd6+ {[%clk 0:01:54]}  Kb7 {[%clk 0:00:05]} 33. Qd5+ {[%clk 0:01:55]}  Qxd5 {[%clk 0:00:02]} 34. Rxd5 {[%clk 0:01:56]} 1-0


[Site "https://www.chess.com"]

[Event "Titled Tuesday Blitz August 15 Late 2023"]
[White "Di Nicolantonio, Lucas"]
[Black "Naroditsky, Daniel"]
[WhiteFideId "680460"]
[BlackFideId "2026961"]
[WhiteElo "2632"]
[BlackElo "3160"]
[Result "0-1"]
[Round "3"]
[TimeControl "180+1"]
[Date "2023.08.15"]
[WhiteClock "0:00:02"]
[BlackClock "0:01:25"]
[Board "37"]

1. Nf3 {[%clk 0:03:00]}  Nf6 {[%clk 0:02:59]} 2. c4 {[%clk 0:03:00]}  g6 {[%clk 0:03:00]} 3. Nc3 {[%clk 0:03:01]}  Bg7 {[%clk 0:03:00]} 4. g3 {[%clk 0:03:02]}  d6 {[%clk 0:03:00]} 5. Bg2 {[%clk 0:03:02]}  O-O {[%clk 0:03:01]} 6. O-O {[%clk 0:03:02]}  e5 {[%clk 0:03:02]} 7. d3 {[%clk 0:03:03]}  Re8 {[%clk 0:03:02]} 8. b4 {[%clk 0:02:53]}  c6 {[%clk 0:03:01]} 9. Rb1 {[%clk 0:02:53]}  d5 {[%clk 0:02:59]} 10. cxd5 {[%clk 0:02:45]}  cxd5 {[%clk 0:03:00]} 11. Bg5 {[%clk 0:02:42]}  Be6 {[%clk 0:03:01]} 12. Nd2 {[%clk 0:02:40]}  h6 {[%clk 0:02:46]} 13. Bxf6 {[%clk 0:02:40]}  Bxf6 {[%clk 0:02:47]} 14. Nb3 {[%clk 0:02:32]}  e4 {[%clk 0:02:45]} 15. Nb5 {[%clk 0:02:26]}  exd3 {[%clk 0:02:43]} 16. exd3 {[%clk 0:02:19]}  Nc6 {[%clk 0:02:35]} 17. Nc5 {[%clk 0:02:18]}  Bc8 {[%clk 0:02:14]} 18. Qd2 {[%clk 0:02:04]}  b6 {[%clk 0:01:56]} 19. Nb3 {[%clk 0:01:56]}  Bg7 {[%clk 0:01:57]} 20. Rbc1 {[%clk 0:01:52]}  Bb7 {[%clk 0:01:56]} 21. Qf4 {[%clk 0:01:46]}  Ne5 {[%clk 0:01:43]} 22. Rc7 {[%clk 0:01:36]}  Re7 {[%clk 0:01:43]} 23. Rxe7 {[%clk 0:00:46]}  Qxe7 {[%clk 0:01:44]} 24. d4 {[%clk 0:00:44]}  Nc4 {[%clk 0:01:39]} 25. Qc7 {[%clk 0:00:20]}  Qxc7 {[%clk 0:01:39]} 26. Nxc7 {[%clk 0:00:21]}  Rd8 {[%clk 0:01:39]} 27. Re1 {[%clk 0:00:19]}  Bf8 {[%clk 0:01:26]} 28. b5 {[%clk 0:00:18]}  Rd7 {[%clk 0:01:27]} 29. Ne8 {[%clk 0:00:18]}  Be7 {[%clk 0:01:26]} 30. Bh3 {[%clk 0:00:11]}  f5 {[%clk 0:01:27]} 31. Bf1 {[%clk 0:00:02]}  Kf7 {[%clk 0:01:25]} 0-1


[Site "https://www.chess.com"]

[Event "Titled Tuesday Blitz August 15 Late 2023"]
[White "Indjic, Aleksandar"]
[Black "Vlassov, Nikolai"]
[WhiteFideId "911925"]
[BlackFideId "4103360"]
[WhiteElo "2995"]
[BlackElo "2603"]
[Result "1-0"]
[Round "3"]
[TimeControl "180+1"]
[Date "2023.08.15"]
[WhiteClock "0:01:06"]
[BlackClock "0:00:08"]
[Board "38"]

1. d4 {[%clk 0:02:48]}  Nf6 {[%clk 0:02:59]} 2. c4 {[%clk 0:02:48]}  Nc6 {[%clk 0:02:58]} 3. a3 {[%clk 0:02:47]}  e5 {[%clk 0:02:58]} 4. d5 {[%clk 0:02:45]}  Ne7 {[%clk 0:02:58]} 5. Nc3 {[%clk 0:02:45]}  Ng6 {[%clk 0:02:58]} 6. e4 {[%clk 0:02:46]}  Bc5 {[%clk 0:02:58]} 7. h3 {[%clk 0:02:43]}  a5 {[%clk 0:02:54]} 8. g3 {[%clk 0:02:41]}  d6 {[%clk 0:02:54]} 9. Nf3 {[%clk 0:02:42]}  O-O {[%clk 0:02:41]} 10. Qe2 {[%clk 0:02:40]}  c6 {[%clk 0:02:40]} 11. Be3 {[%clk 0:02:39]}  Bxe3 {[%clk 0:02:38]} 12. Qxe3 {[%clk 0:02:39]}  cxd5 {[%clk 0:02:38]} 13. cxd5 {[%clk 0:02:38]}  Nd7 {[%clk 0:02:31]} 14. Nd2 {[%clk 0:02:33]}  Nc5 {[%clk 0:02:28]} 15. Bg2 {[%clk 0:02:10]}  f5 {[%clk 0:02:27]} 16. exf5 {[%clk 0:02:10]}  Bxf5 {[%clk 0:02:27]} 17. Nce4 {[%clk 0:02:05]}  Nxe4 {[%clk 0:01:53]} 18. Bxe4 {[%clk 0:02:03]}  Qd7 {[%clk 0:01:49]} 19. Bxf5 {[%clk 0:02:03]}  Qxf5 {[%clk 0:01:39]} 20. Ne4 {[%clk 0:02:03]}  Rad8 {[%clk 0:01:05]} 21. O-O-O {[%clk 0:02:00]}  h6 {[%clk 0:00:59]} 22. Kb1 {[%clk 0:02:00]}  Ne7 {[%clk 0:00:59]} 23. Ka1 {[%clk 0:01:58]}  Qf7 {[%clk 0:00:58]} 24. Qd2 {[%clk 0:01:45]}  b6 {[%clk 0:00:33]} 25. g4 {[%clk 0:01:40]}  Qf3 {[%clk 0:00:27]} 26. Qd3 {[%clk 0:01:38]}  Ng6 {[%clk 0:00:24]} 27. Qxf3 {[%clk 0:01:35]}  Rxf3 {[%clk 0:00:24]} 28. Rc1 {[%clk 0:01:19]}  Rd3 {[%clk 0:00:23]} 29. Rhd1 {[%clk 0:01:18]}  Rxd1 {[%clk 0:00:23]} 30. Rxd1 {[%clk 0:01:18]}  Nf4 {[%clk 0:00:23]} 31. h4 {[%clk 0:01:17]}  Kf7 {[%clk 0:00:24]} 32. Ka2 {[%clk 0:01:15]}  Ke7 {[%clk 0:00:24]} 33. Kb3 {[%clk 0:01:15]}  Rc8 {[%clk 0:00:24]} 34. Nc3 {[%clk 0:01:14]}  Rc5 {[%clk 0:00:22]} 35. a4 {[%clk 0:01:15]}  Kd7 {[%clk 0:00:19]} 36. f3 {[%clk 0:01:14]}  g6 {[%clk 0:00:18]} 37. h5 {[%clk 0:01:13]}  gxh5 {[%clk 0:00:18]} 38. gxh5 {[%clk 0:01:12]}  Nxh5 {[%clk 0:00:18]} 39. Ne4 {[%clk 0:01:11]}  Rc8 {[%clk 0:00:18]} 40. Rh1 {[%clk 0:01:11]}  Nf4 {[%clk 0:00:18]} 41. Rxh6 {[%clk 0:01:11]}  Ke7 {[%clk 0:00:13]} 42. Rh7+ {[%clk 0:01:09]}  Kd8 {[%clk 0:00:11]} 43. Nxd6 {[%clk 0:01:06]}  Rc5 {[%clk 0:00:08]} 44. Nb7+ {[%clk 0:01:06]} 1-0


[Site "https://www.chess.com"]

[Event "Titled Tuesday Blitz August 15 Late 2023"]
[White "Moskalenko, Alexander"]
[Black "Khater, Sherif"]
[WhiteFideId "4155351"]
[BlackFideId "2034280"]
[WhiteElo "2887"]
[BlackElo "2563"]
[Result "1-0"]
[Round "3"]
[TimeControl "180+1"]
[Date "2023.08.15"]
[WhiteClock "0:00:51"]
[BlackClock "0:00:05"]
[Board "40"]

1. c4 {[%clk 0:02:55]}  a6 {[%clk 0:03:00]} 2. e3 {[%clk 0:02:54]}  c5 {[%clk 0:03:00]} 3. Nf3 {[%clk 0:02:54]}  d6 {[%clk 0:03:00]} 4. d4 {[%clk 0:02:54]}  cxd4 {[%clk 0:03:00]} 5. exd4 {[%clk 0:02:55]}  Nf6 {[%clk 0:03:00]} 6. Nc3 {[%clk 0:02:56]}  g6 {[%clk 0:03:01]} 7. Be2 {[%clk 0:02:53]}  Bg7 {[%clk 0:03:01]} 8. O-O {[%clk 0:02:54]}  O-O {[%clk 0:03:02]} 9. Be3 {[%clk 0:02:51]}  Nbd7 {[%clk 0:03:03]} 10. h3 {[%clk 0:02:50]}  b6 {[%clk 0:03:03]} 11. d5 {[%clk 0:02:49]}  Bb7 {[%clk 0:03:02]} 12. Qd2 {[%clk 0:02:49]}  Rc8 {[%clk 0:03:00]} 13. Bh6 {[%clk 0:02:48]}  Qc7 {[%clk 0:02:57]} 14. Bxg7 {[%clk 0:02:49]}  Kxg7 {[%clk 0:02:58]} 15. Rfe1 {[%clk 0:02:48]}  Rfe8 {[%clk 0:02:58]} 16. Rac1 {[%clk 0:02:47]}  Kg8 {[%clk 0:02:54]} 17. Nd4 {[%clk 0:02:47]}  Ne5 {[%clk 0:02:52]} 18. b3 {[%clk 0:02:48]}  Qb8 {[%clk 0:02:52]} 19. f4 {[%clk 0:02:47]}  Ned7 {[%clk 0:02:52]} 20. Bf3 {[%clk 0:02:48]}  Nf8 {[%clk 0:02:37]} 21. Nc6 {[%clk 0:02:44]}  Bxc6 {[%clk 0:02:36]} 22. dxc6 {[%clk 0:02:45]}  Ne6 {[%clk 0:02:29]} 23. b4 {[%clk 0:02:44]}  d5 {[%clk 0:02:27]} 24. Nxd5 {[%clk 0:02:34]}  Nxd5 {[%clk 0:02:26]} 25. cxd5 {[%clk 0:02:34]}  Qxf4 {[%clk 0:02:21]} 26. Qxf4 {[%clk 0:02:12]}  Nxf4 {[%clk 0:02:22]} 27. Rc4 {[%clk 0:02:13]}  Nd3 {[%clk 0:01:58]} 28. Re3 {[%clk 0:02:09]}  b5 {[%clk 0:01:52]} 29. Rd4 {[%clk 0:01:48]}  Nb2 {[%clk 0:01:49]} 30. Be2 {[%clk 0:01:22]}  Kf8 {[%clk 0:01:46]} 31. Kf2 {[%clk 0:01:21]}  Red8 {[%clk 0:01:35]} 32. Rd2 {[%clk 0:01:20]}  Na4 {[%clk 0:01:31]} 33. Bf3 {[%clk 0:01:16]}  Rd6 {[%clk 0:01:29]} 34. Rc2 {[%clk 0:01:13]}  Nb6 {[%clk 0:01:28]} 35. Rc5 {[%clk 0:01:11]}  Rc7 {[%clk 0:01:23]} 36. Ra3 {[%clk 0:01:10]}  Na4 {[%clk 0:01:09]} 37. Rxa4 {[%clk 0:01:08]}  bxa4 {[%clk 0:01:09]} 38. Ra5 {[%clk 0:01:09]}  e6 {[%clk 0:01:09]} 39. Rxa6 {[%clk 0:01:09]}  exd5 {[%clk 0:01:04]} 40. b5 {[%clk 0:01:09]}  Kg7 {[%clk 0:01:01]} 41. Rxa4 {[%clk 0:01:06]}  Re7 {[%clk 0:00:55]} 42. Rb4 {[%clk 0:01:04]}  Ra7 {[%clk 0:00:47]} 43. a4 {[%clk 0:01:03]}  Ra8 {[%clk 0:00:40]} 44. Ke3 {[%clk 0:01:02]}  Kf6 {[%clk 0:00:40]} 45. Kd4 {[%clk 0:01:02]}  Ke6 {[%clk 0:00:40]} 46. Kc5 {[%clk 0:01:03]}  d4 {[%clk 0:00:40]} 47. c7 {[%clk 0:00:57]}  Rc8 {[%clk 0:00:37]} 48. b6 {[%clk 0:00:57]}  d3 {[%clk 0:00:37]} 49. Bb7 {[%clk 0:00:52]}  Rh8 {[%clk 0:00:03]} 50. c8=Q+ {[%clk 0:00:51]}  Rxc8+ {[%clk 0:00:02]} 51. Bxc8+ {[%clk 0:00:51]}  Ke7 {[%clk 0:00:03]} 52. Re4+ {[%clk 0:00:50]}  Kd8 {[%clk 0:00:04]} 53. Kxd6 {[%clk 0:00:50]}  d2 {[%clk 0:00:05]} 54. Rd4 {[%clk 0:00:50]}  d1=Q {[%clk 0:00:04]} 55. Rxd1 {[%clk 0:00:50]}  Kxc8 {[%clk 0:00:05]} 56. Kc6 {[%clk 0:00:51]} 1-0


[Site "https://www.chess.com"]